bitfinex-derivatives/quotes_ETHF0:USTF0_20250712
["timestamp","ask_amount","ask_price","bid_price","bid_amount"]
[1752291364568,2.5107,2966.0,2965.9,1.33163]
[1752291364773,3.18471,2966.0,2965.9,1.33163]
[1752291365071,3.18471,2966.0,2965.9,0.67403]
[1752291365971,0.67405,2965.9,2965.8,1.33164]
[1752291366178,3.18475,2965.9,2965.8,1.33164]
[1752291367678,2.5107,2965.9,2965.8,1.33164]
[1752291367877,3.18473,2965.9,2965.8,1.33164]
[1752291368078,2.5107,2965.9,2965.8,1.33164]
[1752291368275,3.18473,2965.9,2965.8,1.33164]
[1752291368880,2.5107,2965.9,2965.8,1.33164]
[1752291369279,2.5107,2965.9,2965.8,3.20434]
[1752291369578,0.926,2965.9,2965.8,3.20434]
[1752291369969,1.8658,2965.9,2965.8,3.20434]
[1752291370882,2.5107,2965.9,2965.8,3.20434]
[1752291373886,3.18473,2965.9,2965.8,3.20434]
[1752291374281,3.18473,2965.9,2965.8,0.67404]
[1752291375287,3.18473,2965.9,2965.8,0.67405]
[1752291379293,3.13485,2965.8,2965.7,3.2078]
[1752291379592,3.13485,2965.8,2965.5,0.67411]
[1752291379593,3.1349,2965.6,2965.5,0.67411]
[1752291379886,1.68516,2965.8,2965.3,4.1767]
[1752291379887,0.67414,2965.4,2965.3,6.29157579]
[1752291380090,3.13494,2965.4,2965.3,6.93607579]
[1752291380289,3.13494,2965.4,2965.3,3.2078]
[1752291380594,2.21091,2965.2,2965.1,1.31869]
[1752291381192,3.13501,2965.2,2965.1,1.31869]
[1752291382294,3.13501,2965.2,2965.1,1.31871]
[1752291382590,3.13501,2965.2,2964.9,0.9689]
[1752291382591,1.5367,2965.1,2964.9,0.67424]
[1752291382790,3.13503,2965.0,2964.9,0.67424]
[1752291382987,0.67426,2964.9,2964.8,0.67426]
[1752291383192,3.13506,2964.9,2964.8,1.31876]
[1752291384994,2.4608,2964.9,2964.8,1.31876]
[1752291385194,2.4608,2964.9,2964.8,2.25556]
[1752291385591,2.4608,2964.9,2964.8,3.22446]
[1752291386697,3.13506,2964.9,2964.8,3.22446]
[1752291387195,2.4608,2964.9,2964.8,3.22446]
[1752291387395,3.13506,2964.9,2964.8,3.22446]
[1752291387597,2.4608,2964.9,2964.8,3.22446]
[1752291387895,3.13506,2964.9,2964.8,3.22446]
[1752291389192,3.13506,2964.9,2964.8,2.25556]
[1752291390294,3.13506,2964.9,2964.8,1.31876]
[1752291394797,3.13506,2964.9,2964.8,2.25556]
[1752291396806,3.13506,2964.9,2964.8,1.31876]
[1752291398202,3.13506,2964.9,2964.8,2.25556]
[1752291398401,2.4608,2964.9,2964.8,2.25556]
[1752291398601,2.4608,2964.9,2964.8,3.22446]
[1752291399003,3.13506,2964.9,2964.8,3.22446]
[1752291400003,3.13506,2964.9,2964.8,2.25556]
[1752291400204,3.13506,2964.9,2964.8,1.31876]
[1752291400400,3.13506,2964.9,2964.8,3.22446]
[1752291402300,3.13506,2964.9,2964.8,2.25556]
[1752291402505,3.13506,2964.9,2964.8,1.31876]
[1752291403001,3.13508,2964.8,2964.7,3.2078]
[1752291403201,3.19185,2964.5,2964.4,3.2078]
[1752291404810,3.19185,2964.5,2964.4,3.88217]
[1752291405399,3.19185,2964.5,2964.4,4.49627]
[1752291408109,3.19185,2964.5,2964.4,5.48957]
[1752291412211,3.19185,2964.5,2964.4,4.49627]
[1752291412711,2.5175,2964.5,2964.4,4.49627]
[1752291412911,2.5175,2964.5,2964.4,1.28847]
[1752291413107,2.5175,2964.5,2964.4,4.49627]
[1752291413413,3.19185,2964.5,2964.4,4.49627]
[1752291413612,3.19185,2964.5,2964.4,1.28847]
[1752291413814,2.5175,2964.5,2964.4,1.28847]
[1752291414113,3.19185,2964.5,2964.4,1.28847]
[1752291415514,3.19185,2964.5,2964.4,0.67437]
[1752291415914,2.24539,2964.4,2964.3,0.67438]
[1752291416109,3.21549,2964.4,2964.3,0.67438]
[1752291416617,1.29791,2964.3,2964.2,1.28849]
[1752291416807,3.21551,2964.3,2964.2,1.28849]
[1752291417712,3.21551,2964.3,2964.2,0.67439]
[1752291418311,0.67441,2964.2,2964.1,3.2078]
[1752291418513,0.67441,2964.2,2963.9,2.40962579]
[1752291418514,3.21556,2964.0,2963.9,2.40962579]
[1752291418813,3.21556,2964.0,2963.8,4.50845552]
[1752291418814,2.5411,2963.9,2963.8,4.50845552]
[1752291419509,0.9701,2963.9,2963.8,4.50845552]
[1752291420314,2.5411,2964.1,2964.0,1.28856]
[1752291420514,3.21554,2964.1,2964.0,3.22816]
[1752291420817,2.26804,2964.1,2964.0,3.22816]
[1752291421017,3.21554,2964.1,2964.0,3.22816]
[1752291422519,3.21554,2964.1,2964.0,1.28856]
[1752291424119,3.21554,2964.1,2964.0,2.28186]
[1752291424723,1.29798,2964.0,2963.9,0.6141]
[1752291424923,1.686,2964.3,2963.7,3.88233]
[1752291424924,1.5936,2963.8,2963.7,3.88233]
[1752291425123,2.5411,2963.8,2963.7,3.88233]
[1752291425825,3.21561,2963.8,2963.7,3.88233]
[1752291426825,2.5411,2963.8,2963.7,6.43603]
[1752291427024,3.21561,2963.8,2963.7,6.43603]
[1752291427525,3.21561,2963.8,2963.7,5.48973]
[1752291428229,3.21561,2963.8,2963.7,4.49643]
[1752291429932,3.2157,2963.5,2963.4,3.8219]
[1752291430128,3.2157,2963.5,2963.4,4.49646]
[1752291434435,2.5411,2963.5,2963.4,4.49646]
[1752291434730,3.21567,2963.5,2963.4,4.49646]
[1752291434937,2.5411,2963.5,2963.4,4.49646]
[1752291435135,2.5411,2963.5,2963.4,6.46286]
[1752291437933,0.9367,2963.7,2963.4,3.2078]
[1752291438134,2.5162,2963.7,2963.6,2.26145]
[1752291438334,2.5162,2963.7,2963.6,3.19385]
[1752291439730,3.2078,2964.1,2964.0,0.67446]
[1752291439938,4.7873,2964.1,2964.0,3.19376]
[1752291440133,1.5795,2964.1,2964.0,3.19376]
[1752291440534,2.5162,2964.1,2964.0,3.19376]
[1752291440934,3.19064,2964.1,2964.0,3.19376]
[1752291441136,3.19064,2964.1,2964.0,2.22066]
[1752291441329,2.5162,2964.1,2964.0,2.22066]
[1752291441539,2.5162,2964.1,2964.0,3.19376]
[1752291441833,3.19064,2964.1,2964.0,3.19376]
[1752291442038,2.5162,2964.1,2964.0,3.19376]
[1752291442236,3.19057,2964.5,2964.4,1.28815]
[1752291442434,4.0392284,2964.5,2964.4,1.28815]
[1752291443134,3.3648584,2964.5,2964.4,1.28815]
[1752291444840,4.0392084,2964.5,2964.4,1.28815]
[1752291445338,3.3648584,2964.5,2964.4,1.28815]
[1752291445538,3.3648584,2964.5,2964.4,2.22055]
[1752291445841,4.0392084,2964.5,2964.4,3.19365]
[1752291446035,3.3648584,2964.5,2964.4,3.19365]
[1752291447839,2.5162,2964.5,2964.4,3.19365]
[1752291448739,3.36622801,2964.5,2964.4,3.19365]
[1752291449339,2.5162,2964.5,2964.4,3.19365]
[1752291454838,3.19055,2964.5,2964.4,3.19365]
[1752291455344,2.5162,2964.5,2964.4,3.19365]
[1752291458248,3.19055,2964.5,2964.4,0.67435]
[1752291460245,0.67439,2964.4,2964.3,0.67437]
[1752291460450,3.19059,2964.4,2964.3,1.28817]
[1752291467751,1.32739,2964.3,2964.2,3.2078]
[1752291467955,3.20389,2964.3,2964.2,3.8822]
[1752291469658,3.20389,2964.3,2964.2,4.4799]
[1752291471056,3.20389,2964.3,2964.2,5.4383]
[1752291472159,3.20389,2964.3,2964.2,3.8055]
[1752291472459,3.20389,2964.3,2964.2,4.47991]
[1752291479767,3.20389,2964.3,2964.2,5.43831]
[1752291480665,3.20389,2964.3,2964.2,6.34401]
[1752291481765,3.20389,2964.3,2964.2,3.8055]
[1752291482466,3.20389,2964.3,2964.2,4.47991]
[1752291482666,3.20389,2964.3,2964.2,5.43831]
[1752291489878,3.20389,2964.3,2964.2,7.62425552]
[1752291490082,1.62949,2964.3,2964.2,7.62425552]
[1752291490383,3.20389,2964.3,2964.2,7.62425552]
[1752291492082,2.5295,2964.3,2964.2,7.62425552]
[1752291492584,3.20389,2964.3,2964.2,7.62425552]
[1752291494680,2.5295,2964.3,2964.2,7.62425552]
[1752291494984,3.20389,2964.3,2964.2,7.62425552]
[1752291496286,1.29232,2964.7,2964.6,2.24101]
[1752291496477,4.04569671,2964.7,2964.6,3.21522]
[1752291498184,4.04569671,2964.7,2964.6,2.24102]
[1752291501588,4.04569671,2964.7,2964.6,3.21522]
[1752291505493,4.04569671,2964.7,2964.6,2.24102]
[1752291506193,4.04569671,2964.7,2964.6,3.21522]
[1752291508989,4.04567671,2964.7,2964.6,3.21522]
[1752291509994,3.37137671,2964.7,2964.6,3.21522]
[1752291511198,4.04567671,2964.7,2964.6,3.21522]
[1752291511697,3.1975,2964.7,2964.6,3.21522]
[1752291512096,4.04531971,2964.7,2964.6,3.21522]
[1752291513398,3.37101971,2964.7,2964.6,3.21522]
[1752291514499,4.04531971,2964.7,2964.6,3.21522]
[1752291515200,4.04531971,2964.7,2964.6,1.31342]
[1752291516294,4.04531971,2964.7,2964.6,0.67432]
[1752291517701,4.04531971,2964.7,2964.6,1.31342]
[1752291519004,1.9052,2964.4,2964.1,5.62826286]
[1752291519198,2.5232,2964.2,2964.1,3.2078]
[1752291519397,3.19761,2964.2,2964.1,3.88224]
[1752291520202,3.19761,2964.2,2964.1,0.67444]
[1752291522602,2.21538,2964.0,2963.9,1.31356]
[1752291522904,2.21538,2964.0,2963.9,3.21536]
[1752291523202,3.19768,2964.0,2963.9,3.21536]
[1752291524699,2.5232,2964.0,2963.9,3.21536]
[1752291528604,3.19766,2964.0,2963.9,3.21536]
[1752291529605,3.19766,2964.0,2963.9,0.6391]
[1752291530504,3.19766,2964.0,2963.9,1.31358]
[1752291531906,3.19766,2964.0,2963.9,3.18468]
[1752291533109,3.19766,2964.0,2963.9,6.39248]
[1752291533808,2.5232,2964.0,2963.9,6.39248]
[1752291534608,3.19766,2964.0,2963.9,6.39248]
[1752291534808,3.19766,2964.0,2963.9,5.43018]
[1752291535208,3.19766,2964.0,2963.9,6.39248]
[1752291535408,2.5232,2964.0,2963.9,6.39248]
[1752291537516,1.5967,2964.3,2964.2,2.5238]
[1752291537714,2.5046,2964.3,2964.2,2.5238]
[1752291537910,2.5046,2964.3,2964.2,3.19821]
[1752291538717,3.17899,2964.3,2964.2,3.19821]
[1752291539616,2.5046,2964.3,2964.2,3.19821]
[1752291540318,3.17899,2964.3,2964.2,3.19821]
[1752291542326,3.17899,2964.3,2964.2,2.5238]
[1752291542526,3.17899,2964.3,2964.2,3.19821]
[1752291542722,3.17899,2964.3,2964.2,1.5615]
[1752291543026,2.27111,2964.2,2964.1,0.67442]
[1752291543227,3.17901,2964.2,2964.1,1.32712]
[1752291543726,2.5046,2964.2,2964.1,3.19822]
[1752291543921,3.17901,2964.2,2964.1,3.19822]
[1752291545023,2.5046,2964.2,2964.1,3.19822]
[1752291545725,3.17901,2964.2,2964.1,3.19822]
[1752291546423,2.5046,2964.2,2964.1,3.19822]
[1752291546827,3.17901,2964.2,2964.1,2.23592]
[1752291547230,3.17901,2964.2,2964.1,1.15812]
[1752291548322,3.17901,2964.2,2964.1,0.50542]
[1752291549626,2.20996,2964.0,2963.9,4.53496]
[1752291549831,3.17906,2964.0,2963.9,4.53496]
[1752291550028,3.17906,2964.0,2963.9,5.44376]
[1752291551032,2.5046,2964.0,2963.9,5.44376]
[1752291552228,3.17906,2964.0,2963.9,5.44376]
[1752291552431,3.17906,2964.0,2963.9,3.88226]
[1752291552631,3.17906,2964.0,2963.9,3.2078]
[1752291552933,3.17906,2964.0,2963.9,3.88228]
[1752291554437,3.17906,2964.0,2963.9,4.53498]
[1752291554735,3.17906,2964.0,2963.9,5.44378]
[1752291555731,3.17906,2964.0,2963.9,4.53498]
[1752291555929,0.6523,2963.7,2963.6,3.8316]
[1752291556134,3.17673,2963.7,2963.6,4.50612]
[1752291558539,2.5022,2963.7,2963.6,6.43612]
[1752291558836,3.17673,2963.7,2963.6,5.45362]
[1752291559136,3.17673,2963.7,2963.6,4.50615]
[1752291559537,3.17673,2963.7,2963.6,5.48865]
[1752291559740,2.5022,2963.7,2963.6,6.43615]
[1752291561741,3.17666,2964.1,2964.0,1.6063]
[1752291561942,4.0306935,2964.1,2964.0,0.6238]
[1752291562135,4.0306935,2964.1,2964.0,1.29826]
[1752291562437,4.0306935,2964.1,2964.0,0.6238]
[1752291563744,4.0306935,2964.1,2964.0,1.29826]
[1752291566140,4.0306935,2964.1,2964.0,2.28076]
[1752291567142,4.0306935,2964.1,2964.0,1.29826]
[1752291569844,4.0306935,2964.1,2964.0,0.6238]
[1752291571044,1.32676,2964.0,2963.9,0.67447]
[1752291571343,3.17673,2963.8,2963.7,0.67451]
[1752291572744,3.17673,2963.7,2963.6,3.2078]
[1752291574747,3.17673,2963.7,2963.6,4.50615]
[1752291575450,3.17673,2963.7,2963.6,3.8316]
[1752291576544,3.17673,2963.7,2963.6,4.50615]
[1752291577847,3.17673,2963.7,2963.6,6.43615]
[1752291578144,1.8499,2963.7,2963.6,6.43615]
[1752291579049,2.52443,2963.7,2963.6,6.43615]
[1752291579944,1.8499,2963.7,2963.6,6.43615]
[1752291580143,0.94,2963.7,2963.6,6.43615]
[1752291581450,1.8499,2963.7,2963.6,6.43615]
[1752291581949,2.52443,2963.7,2963.6,6.43615]
[1752291583854,1.8499,2963.7,2963.6,6.43615]
[1752291584553,1.8499,2963.7,2963.6,3.22835]
[1752291584854,2.52443,2963.7,2963.6,6.43615]
[1752291585154,3.17673,2963.7,2963.6,6.43615]
[1752291585349,2.5022,2963.7,2963.6,6.43615]
[1752291588255,3.17673,2963.7,2963.6,6.43615]
[1752291589255,2.5022,2963.7,2963.6,6.43615]
[1752291589954,3.17673,2963.7,2963.6,6.43615]
[1752291590356,2.5022,2963.7,2963.6,6.43615]
[1752291590552,0.9099,2963.7,2963.6,6.43615]
[1752291590758,2.5384,2963.9,2963.8,2.2131]
[1752291590953,4.01312079,2963.9,2963.8,4.45184552]
[1752291592659,3.33862079,2963.9,2963.8,4.45184552]
[1752291592859,0.8947,2963.9,2963.8,4.45184552]
[1752291593058,1.5893,2964.1,2964.0,1.31366]
[1752291593259,3.33856829,2964.1,2964.0,6.37936]
[1752291593959,2.484,2964.1,2964.0,6.37936]
[1752291594657,0.9692,2964.3,2964.0,5.74016]
[1752291594958,2.53828,2964.4,2964.3,3.17149]
[1752291595254,4.01257879,2964.4,2964.3,3.17149]
[1752291598056,4.01257879,2964.4,2964.3,1.31359]
[1752291598562,4.01257879,2964.4,2964.3,2.21299]
[1752291598761,4.01257879,2964.4,2964.3,3.17149]
[1752291599465,3.15838,2964.4,2964.3,3.17149]
[1752291600658,2.484,2964.4,2964.3,6.37929]
[1752291601259,1.8639,2964.4,2964.3,6.37929]
[1752291601461,48.59,2964.8,2964.3,6.37929]
[1752291601462,26.08228,2964.8,2964.7,3.1714]
[1752291601762,26.93546701,2964.8,2964.7,3.1714]
[1752291602154,3.33718701,2964.8,2964.7,3.1714]
[1752291604464,2.484,2964.8,2964.7,3.1714]
[1752291611973,2.484,2964.8,2964.7,6.3792]
[1752291624676,2.484,2964.8,2964.7,3.1714]
[1752291624878,2.484,2964.8,2964.7,6.3792]
[1752291628385,2.484,2964.8,2964.7,5.4207]
[1752291628884,2.484,2964.8,2964.7,4.5213]
[1752291629684,2.484,2964.8,2964.7,5.4388]
[1752291630379,2.434,2964.8,2964.7,5.4388]
[1752291630686,2.434,2964.8,2964.7,6.4283]
[1752291631280,2.434,2964.8,2964.7,5.4388]
[1752291632280,2.434,2964.8,2964.7,6.4283]
[1752291636889,1.8139,2964.8,2964.7,6.4283]
[1752291637088,5.0760543,2965.5,2965.3,0.67414]
[1752291637089,0.6411,2965.4,2965.3,0.67414]
[1752291637292,2.16981256,2965.4,2965.3,0.67414]
[1752291638585,2.16981256,2965.4,2965.3,2.58114]
[1752291638790,2.16981256,2965.4,2965.3,3.19754]
[1752291639086,4.10161256,2965.4,2965.3,3.19754]
[1752291641692,4.10161256,2965.4,2965.3,3.02854]
[1752291641890,3.42745256,2965.4,2965.3,3.02854]
[1752291642791,3.42745256,2965.4,2965.3,7.51658552]
[1752291644393,2.5729,2965.4,2965.3,7.51658552]
[1752291644593,1.5977,2965.6,2965.5,3.16672]
[1752291644898,2.45140465,2965.6,2965.5,4.44696552]
[1752291645488,1.5977,2965.6,2965.5,4.44696552]
[1752291646699,24.59397,2966.1,2965.9,3.14423]
[1752291646700,2.5265,2966.0,2965.9,3.14423]
[1752291646997,3.37956682,2966.0,2965.9,3.14423]
[1752291650094,2.5265,2966.0,2965.9,3.14423]
[1752291657005,2.5265,2966.0,2965.9,2.97523]
[1752291659905,3.20053,2965.9,2965.8,3.2078]
[1752291660103,1.5977,2965.5,2965.4,3.88194]
[1752291660301,0.67419,2965.3,2965.1,3.2078]
[1752291660601,1.32999,2965.2,2965.1,3.2078]
[1752291661005,2.5265,2965.2,2965.1,3.88199]
[1752291661506,2.5265,2965.2,2965.1,4.77709]
[1752291663208,3.20069,2965.2,2965.1,3.88199]
[1752291666302,2.5265,2965.2,2965.1,3.88199]
[1752291666705,3.20069,2965.2,2965.1,4.77709]
[1752291667706,3.20069,2965.2,2965.1,1.56929]
[1752291670007,2.5265,2965.2,2965.1,3.14439]
[1752291674598,1.5977,2965.2,2965.1,3.14439]
[1752291674907,2.495,2965.4,2965.3,3.12106]
[1752291675105,2.495,2965.4,2965.3,7.60910552]
[1752291676006,3.16914,2965.4,2965.3,7.60910552]
[1752291677509,2.495,2965.4,2965.3,7.60910552]
[1752291677704,3.16914,2965.4,2965.3,7.60910552]
[1752291677906,2.495,2965.4,2965.3,7.60910552]
[1752291678407,3.17839,2965.7,2965.6,3.19235]
[1752291678999,1.68525,2965.6,2965.3,3.2078]
[1752291679203,29.07707552,2966.0,2965.0,2.65203]
[1752291679204,2.5043,2965.1,2965.0,4.7866]
[1752291679405,3.17851,2965.1,2965.0,6.40031]
[1752291682310,3.17851,2965.1,2965.0,6.23131]
[1752291683205,2.5043,2965.1,2965.0,6.23131]
[1752291683705,3.17851,2965.1,2965.0,6.23131]
[1752291683912,2.5043,2965.1,2965.0,6.23131]
[1752291684311,3.17851,2965.1,2965.0,6.23131]
[1752291686916,3.17851,2965.1,2965.0,3.02351]
[1752291687116,3.17851,2965.1,2965.0,6.23131]
[1752291687517,0.6311,2964.9,2964.8,2.5183]
[1752291687718,2.5043,2964.9,2964.8,1.5788]
[1752291688514,2.5043,2964.9,2964.8,0.6123]
[1752291688714,3.17855,2964.9,2964.8,1.28658]
[1752291690318,3.17855,2964.9,2964.8,0.67428]
[1752291691222,2.24348,2964.8,2964.7,3.2078]
[1752291691517,3.17858,2964.8,2964.7,3.8821]
[1752291691908,3.17858,2964.8,2964.7,3.2078]
[1752291692518,3.17858,2964.8,2964.7,3.8821]
[1752291692715,2.5043,2964.8,2964.7,7.68064552]
[1752291693116,1.5662,2964.8,2964.7,7.68064552]
[1752291693317,2.5043,2964.8,2964.7,7.68064552]
[1752291693616,3.17853,2965.1,2965.0,3.19253]
[1752291693817,4.03041875,2965.1,2965.0,3.19253]
[1752291694017,3.35618875,2965.1,2965.0,4.47277552]
[1752291694315,3.17851,2965.1,2965.0,7.68057552]
[1752291694515,4.03034721,2965.1,2965.0,7.68057552]
[1752291695213,4.03034721,2965.1,2965.0,3.8201]
[1752291695417,4.03034721,2965.1,2965.0,4.49433]
[1752291695820,4.03034721,2965.1,2965.0,5.46083]
[1752291696020,4.03034721,2965.1,2965.0,2.25303]
[1752291696623,4.03034721,2965.1,2965.0,3.19253]
[1752291697721,4.03034721,2965.1,2965.0,3.02353]
[1752291697921,4.03034721,2965.1,2965.0,2.3493]
[1752291698119,4.03034721,2965.1,2965.0,3.02353]
[1752291699024,3.17851,2965.1,2965.0,3.02353]
[1752291701029,4.03014888,2965.1,2965.0,3.02353]
[1752291701326,3.17851,2965.1,2965.0,3.02353]
[1752291704130,3.17851,2965.1,2965.0,2.3493]
[1752291704332,3.17851,2965.1,2965.0,3.02353]
[1752291706532,3.17851,2965.1,2965.0,2.3493]
[1752291706728,3.17851,2965.1,2965.0,3.02353]
[1752291707333,4.02915069,2965.1,2965.0,3.02353]
[1752291710134,4.02915069,2965.1,2965.0,2.3493]
[1752291710334,4.02915069,2965.1,2965.0,3.02353]
[1752291712634,3.09105069,2965.1,2965.0,3.02353]
[1752291712829,2.41684069,2965.1,2965.0,3.02353]
[1752291713136,3.33064069,2965.1,2965.0,3.02353]
[1752291713435,4.00485069,2965.1,2965.0,3.02353]
[1752291713634,4.00485069,2965.1,2965.0,2.85453]
[1752291715840,4.00485069,2965.1,2965.0,1.91503]
[1752291719443,4.00485069,2965.1,2965.0,2.85403]
[1752291719642,4.00485069,2965.1,2965.0,2.1798]
[1752291720243,4.00485069,2965.1,2965.0,2.85403]
[1752291723949,4.00485069,2965.1,2965.0,4.13427552]
[1752291724149,2.41684069,2965.1,2965.0,4.13427552]
[1752291724452,2.41084069,2965.1,2965.0,4.13427552]
[1752291725154,3.99885069,2965.1,2965.0,4.13427552]
[1752291726447,3.99885069,2965.1,2965.0,2.85403]
[1752291728352,3.99885069,2965.1,2965.0,2.1798]
[1752291729055,3.99885069,2965.1,2965.0,1.74603]
[1752291730458,3.99885069,2965.1,2965.0,1.0718]
[1752291730857,3.99885069,2965.1,2965.0,1.74603]
[1752291735359,0.6266,2964.9,2964.8,0.6361]
[1752291735659,3.19935,2964.9,2964.8,0.6361]
[1752291736157,3.19935,2964.9,2964.8,1.6107]
[1752291736352,3.19935,2964.9,2964.8,2.28498]
[1752291736659,3.19935,2964.9,2964.8,1.6107]
[1752291737054,3.19935,2964.9,2964.8,2.28498]
[1752291737256,3.19935,2964.9,2964.8,1.6107]
[1752291738360,3.1994,2964.7,2964.6,6.77305552]
[1752291738560,3.1994,2964.7,2964.6,7.67915552]
[1752291739960,3.1994,2964.7,2964.6,6.77305552]
[1752291740660,0.67432,2964.6,2964.5,0.9746]
[1752291740866,3.19944,2964.5,2964.3,3.2078]
[1752291741161,3.19947,2964.4,2964.3,4.1824]
[1752291741856,3.19947,2964.4,2964.1,0.9746]
[1752291741857,0.67441,2964.2,2964.1,0.9746]
[1752291742159,3.19951,2964.2,2964.1,0.9746]
[1752291744164,3.19951,2964.2,2964.1,1.64904]
[1752291744462,3.19951,2964.2,2964.1,1.48004]
[1752291745058,3.19951,2964.2,2964.1,2.11614]
[1752291745370,3.19942,2964.6,2964.5,2.21654]
[1752291745661,3.19942,2964.6,2964.5,3.49678552]
[1752291746458,2.24772,2964.6,2964.5,4.47138552]
[1752291746665,3.19942,2964.6,2964.5,4.47138552]
[1752291748560,2.5251,2964.6,2964.5,4.47138552]
[1752291748758,0.9517,2964.6,2964.5,4.47138552]
[1752291750764,2.5251,2964.8,2964.7,1.3104]
[1752291751064,2.5251,2964.8,2964.7,3.1911]
[1752291751564,3.19938,2964.8,2964.7,3.1911]
[1752291751766,2.5251,2964.8,2964.7,3.1911]
[1752291752064,0.6266,2965.4,2965.3,0.6361]
[1752291752266,2.5251,2965.4,2965.3,4.47120552]
[1752291752565,3.37759544,2965.4,2965.3,4.47120552]
[1752291752759,2.5251,2965.4,2965.3,4.47120552]
[1752291755566,3.2078,2966.0,2965.3,4.47120552]
[1752291755567,3.2078,2966.0,2965.9,3.19083]
[1752291755775,0.6266,2966.4,2966.3,2.28464]
[1752291756269,2.5251,2966.4,2966.3,2.28464]
[1752291757370,5.7329,2966.6,2966.5,3.19069]
[1752291759170,6.40677,2966.6,2966.5,3.19069]
[1752291759770,5.7329,2966.6,2966.5,3.19069]
[1752291760571,6.40677,2966.6,2966.5,3.19069]
[1752291761570,3.19897,2966.6,2966.5,3.19069]
[1752291762967,3.19897,2966.6,2966.5,2.28459]
[1752291768978,3.19897,2966.6,2966.5,3.19749]
[1752291769178,2.5251,2966.6,2966.5,3.19749]
[1752291769479,3.19897,2966.6,2966.5,3.19749]
[1752291770682,0.5979,2966.2,2966.1,5.46058]
[1752291770879,2.4529,2966.2,2966.1,6.37348]
[1752291771178,3.12686,2966.2,2966.1,6.37348]
[1752291775183,2.4529,2966.2,2966.1,6.37348]
[1752291775584,3.12686,2966.2,2966.1,6.37348]
[1752291776880,3.12686,2966.2,2966.1,3.2078]
[1752291777385,3.12686,2966.2,2966.1,3.88178]
[1752291777585,3.12686,2966.2,2966.1,4.81648]
[1752291777886,3.12686,2966.2,2966.1,3.2078]
[1752291778780,0.674,2966.0,2965.9,1.60872]
[1752291779087,3.1269,2966.0,2965.9,5.46062]
[1752291780191,3.1269,2966.0,2965.9,4.7866]
[1752291780392,3.1269,2966.0,2965.9,1.5788]
[1752291780689,3.1269,2966.0,2965.9,2.25283]
[1752291780892,3.1269,2966.0,2965.9,0.67403]
[1752291781391,3.1269,2966.0,2965.7,3.12784552]
[1752291781392,2.4529,2965.8,2965.7,0.9347]
[1752291781891,2.4529,2965.8,2965.7,1.5788]
[1752291782890,3.12695,2965.8,2965.7,2.25287]
[1752291783493,3.12695,2965.8,2965.7,3.16577]
[1752291784696,1.2060543,2966.6,2965.7,3.16577]
[1752291784986,3.97584315,2966.4,2966.3,4.44588552]
[1752291785195,3.12681,2966.4,2966.3,3.16564]
[1752291785385,3.97623885,2966.4,2966.3,3.16564]
[1752291785791,3.12681,2966.4,2966.3,3.16564]
[1752291786293,3.97640116,2966.4,2966.3,3.16564]
[1752291786494,3.97640116,2966.4,2966.3,2.4917]
[1752291788397,3.97640116,2966.4,2966.3,1.5788]
[1752291792301,3.97640116,2966.4,2966.1,2.19314552]
[1752291792302,0.5979,2966.2,2966.1,0.6441]
[1752291792497,1.2719,2966.0,2965.9,3.8519]
[1752291792702,3.1269,2966.0,2965.9,3.8519]
[1752291793204,3.1269,2966.0,2965.9,5.6905]
[1752291795698,3.1269,2966.0,2965.9,3.2078]
[1752291795902,3.13502,2965.5,2965.4,5.6731]
[1752291797004,3.13502,2965.5,2965.4,6.34722]
[1752291800509,2.4609,2965.5,2965.4,6.34722]
[1752291800910,2.4609,2965.5,2965.4,7.62746552]
[1752291801310,2.23219,2965.7,2965.6,1.28089]
[1752291801506,3.13499,2965.7,2965.6,3.13939]
[1752291801814,3.13497,2965.7,2965.6,3.13939]
[1752291802011,0.67405,2965.8,2965.7,0.67405]
[1752291802313,0.67405,2965.8,2965.7,7.62739552]
[1752291802811,1.57685,2965.8,2965.7,7.62739552]
[1752291803213,1.57685,2965.8,2965.7,6.34715]
[1752291803413,3.13495,2965.8,2965.7,6.34715]
[1752291805115,3.13495,2965.8,2965.4,1.68535]
[1752291805116,2.33755,2965.8,2965.4,3.2078]
[1752291805310,3.13502,2965.5,2965.4,4.7692]
[1752291808816,3.13502,2965.5,2965.4,1.5614]
[1752291811718,3.13502,2965.5,2965.4,2.23554]
[1752291812116,3.13502,2965.5,2965.4,3.13944]
[1752291812920,3.13502,2965.5,2965.4,2.4653]
[1752291813219,3.13502,2965.5,2965.4,3.13944]
[1752291813416,3.13502,2965.5,2965.4,2.4653]
[1752291814321,3.13502,2965.5,2965.4,3.13944]
[1752291815019,3.13502,2965.5,2965.4,2.97044]
[1752291816019,3.13502,2965.5,2965.4,4.25068552]
[1752291816619,3.13502,2965.5,2965.4,2.97044]
[1752291820322,2.22932,2965.5,2965.4,2.97044]
[1752291821123,2.22932,2965.5,2965.4,6.17824]
[1752291821722,3.13502,2965.5,2965.4,6.17824]
[1752291833824,3.17729,2965.7,2965.6,3.24519]
[1752291839437,3.17729,2965.7,2965.6,2.10659]
[1752291840734,3.17729,2965.7,2965.6,1.6015]
[1752291840939,2.5032,2965.4,2965.3,1.65726]
[1752291841135,3.17734,2965.4,2965.3,0.9831]
[1752291841332,0.6567,2964.9,2964.8,1.65738]
[1752291841633,3.17748,2964.8,2964.7,4.1909]
[1752291841833,3.17748,2964.8,2964.7,3.2078]
[1752291842037,4.45772552,2964.8,2964.7,3.2078]
[1752291842533,2.23937,2964.4,2964.3,3.99788947]
[1752291842739,1.33107,2964.4,2964.3,0.67439]